Cogmind - Beta 13 @@@ ROGUE MODE // 2024.04.18 @ 06:06:32 Player: Person Guy Result: Destroyed by G-67 Veteran with Field Laser Performance ------------- Evolutions (7) 3500 Regions Visited (17) 3400 Robots Destroyed (218) 1090 Value Destroyed (11273) 11273 Prototype IDs (22) 440 Alien Tech Used (0) 0 Bonus (5333) 5333 TOTAL SCORE: 25036 Bonus ------- High Alert Combat Kills 709 Follower Combat Kills 1299 Entered Garrisons 800 Used RIF Installer 2500 Aligned with FarCom 300 Friendly Fire -275 Cogmind --------- Core Integrity 0/1300 Matter 244/300 Energy 99/100 System Corruption 21% Temperature Cool (0) Movement Core (50) Location -3/Research Parts ------- > --- POWER (2) -------- (None) > --- PROPULSION (4) --- (None) > --- UTILITY (11) ----- Relay Coupler [Sentry] (19) > --- WEAPON (4) ------- (None) > --- INVENTORY (5) ---- Advanced Heavy Treads Field Recycling Unit (0) Plasma Rifle Advanced Remote Datajack Peak State ------------ > --- POWER ------------ Antimatter Reactor Micro Antimatter Reactor > --- PROPULSION ------- Cooled Gravmag System Improved Antigrav System Improved Antigrav System Improved Antigrav System > --- UTILITY ---------- Advanced Heat Sink Advanced Heat Sink Advanced Heat Sink Advanced Coolant Injector Improved Targeting Computer Advanced Target Analyzer Advanced Target Analyzer Advanced Target Analyzer Graphene Brace Relay Coupler [Sentry] Relay Coupler [Heavy] > --- WEAPON ----------- Dispersion Rifle Advanced Plasma Cannon Linear Accelerator Linear Accelerator > --- INVENTORY -------- Relay Coupler [NC] Plasma Rifle Linear Accelerator Advanced Remote Datajack [Rating: 136] Favorites ----------- Power Micro Antimatter Reactor Engine Ion Engine Power Core Micro Nuclear Core Reactor Micro Antimatter Reactor Propulsion Potential Leg Treads Light Treads Leg Potential Leg Wheel Centrium Wheel Hover Unit Improved Antigrav System Utility Large Storage Unit Device Improved Cooling System Storage Large Storage Unit Processor Advanced Target Analyzer Hackware Hacking Suite Protection Improved Light Armor Plating Weapon Advanced Assault Cannon Energy Gun Phase Gun Energy Cannon Particle Cannon Ballistic Gun Flak Gun Ballistic Cannon Advanced Assault Cannon Launcher Proton Missile Launcher Special Weapon Remote Datajack Build | -11 -10 -10 -10 -9 -8 -8 -8 -8 -7 -6 -6 -6 -5 -5 -4 -4 -3 ------- Run | Yrd Mat Min Exi Min Mat Gar Mat Gar Fac Fac Gar Fac Fac Gar Fac Ext Res Slots Evolved 14 | . . . . . 4 . . . 2 2 . . 2 . 2 . 2 Power 1 | . . . . . . . . . . . . . . . 1 . . Propulsion 2 | . . . . . 1 . . . . 1 . . . . . . . Utility 9 | . . . . . 2 . . . 2 . . . 2 . 1 . 2 Weapon 2 | . . . . . 1 . . . . 1 . . . . . . . Parts Attached 274 | . 3 . 6 2 . 17 17 . 22 3 18 36 8 15 22 4 101 Power 28 | . . . . . . 4 1 . 2 . 1 3 1 2 2 . 12 Engine 7 | . . . . . . 1 . . 2 . . 1 1 1 . . 1 Core 7 | . . . . . . 3 1 . . . . 1 . 1 1 . . Reactor 14 | . . . . . . . . . . . 1 1 . . 1 . 11 Propulsion 55 | . 2 . 4 . . 3 2 . . . 6 7 . 4 4 1 22 Treads 11 | . 2 . . . . . . . . . 4 . . . . 1 4 Leg 33 | . . . 4 . . 3 2 . . . 2 7 . 4 4 . 7 Wheel 3 | . . . . . . . . . . . . . . . . . 3 Hover 8 | . . . . . . . . . . . . . . . . . 8 Flight . | . . . . . . . . . . . . . . . . . . Utility 81 | . 1 . 1 . . 2 5 . 11 2 3 11 3 3 5 . 34 Device 33 | . . . 1 . . 2 2 . 2 1 1 . 1 3 1 . 19 Storage 3 | . 1 . . . . . . . . . 1 . . . . . 1 Processor 12 | . . . . . . . 1 . 2 . . 1 . . 2 . 6 Hackware 24 | . . . . . . . 2 . 3 1 1 8 2 . 2 . 5 Protection 9 | . . . . . . . . . 4 . . 2 . . . . 3 Artifact . | . . . . . . . . . . . . . . . . . . Weapon 110 | . . . 1 2 . 8 9 . 9 1 8 15 4 6 11 3 33 Energy Gun 27 | . . . . . . 2 . . 2 . 1 4 . 3 6 . 9 Energy Cannon 6 | . . . 1 . . . 1 . . . . . 1 . . 1 2 Ballistic Gun 23 | . . . . 2 . 3 1 . 1 . 3 4 1 . 1 . 7 Ballistic Cannon 30 | . . . . . . 3 4 . 4 . 3 2 1 3 2 . 8 Launcher 5 | . . . . . . . . . . . 1 1 . . . 2 1 Special Weapon 19 | . . . . . . . 3 . 2 1 . 4 1 . 2 . 6 Impact Weapon . | . . . . . . . . . . . . . . . . . . Slashing Weapon . | . . . . . . . . . . . . . . . . . . Piercing Weapon . | . . . . . . . . . . . . . . . . . . Special Melee Weapon . | . . . . . . . . . . . . . . . . . . Unidentified Prototypes 13 | . . . 3 . . . . . 4 1 . . . . 2 . 3 Parts Lost 95 | . . . . . . 8 1 . . . 4 5 . 8 4 10 55 Power 14 | . . . . . . 2 1 . . . . . . 1 2 1 7 Propulsion 24 | . . . . . . 2 . . . . 1 3 . 3 . 4 11 Utility 23 | . . . . . . 1 . . . . 2 1 . 3 1 . 15 Weapon 34 | . . . . . . 3 . . . . 1 1 . 1 1 5 22 Highest Loss Streak 18 | . . . . . . 2 1 . . . 3 5 . 6 2 8 18 To Critical Strikes . | . . . . . . . . . . . . . . . . . . Average Slot Usage (%) 83 | . 85 85 69 85 54 70 87 90 93 87 87 87 93 92 79 75 78 Engine 2 | . 14 14 14 14 9 5 . . 1 6 1 1 4 1 1 . . Core 2 | . . . . . . 2 9 9 5 . . 2 . 3 . . . Reactor 2 | . . . . . . . . . . . 4 1 . . 2 2 6 Treads 3 | . 26 28 13 . . . . . . . 17 3 . . . 1 1 Leg 15 | . 1 . 14 28 18 19 25 27 23 20 8 19 23 21 18 13 2 Hover 1 | . . . . . . . . . . . . . . . . . 7 Device 9 | . . . . . . 7 11 9 7 8 6 6 10 12 11 15 14 Storage 6 | . 14 14 14 14 9 9 9 9 7 6 6 6 5 5 5 5 3 Processor 4 | . . . . . . . 5 9 10 6 6 2 . . 1 5 12 Hackware 7 | . . . . . . . . . 4 7 7 9 17 17 15 15 8 Protection 2 | . . . . . . . . . 6 6 1 4 5 3 . . 1 Energy Gun 4 | . . . . . . 7 . . . 6 4 6 1 9 6 5 2 Energy Cannon 1 | . . . . . . . 6 9 4 . . . 3 . . . 2 Ballistic Gun 6 | . 28 28 12 28 18 13 2 . 1 6 8 4 4 . . 4 4 Ballistic Cannon 8 | . . . . . . 5 16 18 14 6 9 12 11 11 11 2 5 Naked Turns . | . . . . . . . . . . . . . . . . . . Heaviest Build 93 | 13 28 28 28 28 28 43 43 43 59 55 64 55 69 81 73 58 93 Greatest Support 105 | 20 40 40 40 20 20 72 77 77 77 77 105 105 74 74 78 73 65 Greatest Overweight (x) 4 | . . . 1 1 1 1 1 . . . . 1 . 4 1 2 3 Average Overweight (x) . | . . . . 1 1 . . . . . . . . . . . . Largest Inventory Capacity 15 | 8 15 15 15 15 15 15 15 15 15 15 15 15 15 15 15 15 15 Average Capacity 14 | 8 14 15 15 15 15 15 15 15 15 15 15 15 15 15 15 15 11 Most Carried 15 | 5 10 11 15 12 11 15 15 15 15 15 15 15 14 13 13 10 13 Average Carried 11 | 5 7 10 12 11 11 10 14 14 14 13 13 12 12 10 11 9 6 Final Capacity 15 | 8 15 15 15 15 15 15 15 15 15 15 15 15 15 15 15 15 5 Final Carried 15 | 4 10 11 13 11 11 14 15 15 15 13 14 12 12 11 10 8 5 Class Distribution -------------------- 51% | Bothacker-Skirmisher 13% | Scavenger-Gunner 9% | Mutant 8% | Skirmisher 7% | Botlord-Skirmisher 4% | Bothacker-Gunner Dominant Class ---------------- Mutant | -10/Materials Mutant | -10/Mines Mutant | -10/Exiles Mutant | -9/Mines Mutant | -8/Materials Skirmisher | -8/Garrison Bothacker-Skirmisher | -8/Materials Bothacker-Skirmisher | -8/Garrison Bothacker-Skirmisher | -7/Factory Bothacker-Skirmisher | -6/Factory Bothacker-Skirmisher | -6/Garrison Bothacker-Skirmisher | -6/Factory Bothacker-Skirmisher | -5/Factory Bothacker-Skirmisher | -5/Garrison Botlord-Skirmisher | -4/Factory Bothacker-Mutant | -4/Extension Scavenger-Gunner | -3/Research Resources | -11 -10 -10 -10 -9 -8 -8 -8 -8 -7 -6 -6 -6 -5 -5 -4 -4 -3 ----------- Run | Yrd Mat Min Exi Min Mat Gar Mat Gar Fac Fac Gar Fac Fac Gar Fac Ext Res Matter Collected 9237 | 200 50 60 . 80 . 516 565 . 734 25 897 889 405 910 748 205 2953 Remotely . | . . . . . . . . . . . . . . . . . . Salvage Created 9617 | . 145 173 . . . 697 570 . 674 . 1063 442 192 780 261 149 4471 Parts 437 | . 14 4 . . . 38 23 . 37 . 60 17 11 26 15 4 188 Haulers Intercepted 6 | . . . . . . . . . 1 . . 2 . . . . 3 Recyclers Shooed 16 | . . 1 . . . . 1 . . . . 2 . . . 3 9 Parts Field Recycled . | . . . . . . . . . . . . . . . . . . Retrieved Matter . | . . . . . . . . . . . . . . . . . . Parts Self-Destructed . | . . . . . . . . . . . . . . . . . . Prevented . | . . . . . . . . . . . . . . . . . . Kills | -11 -10 -10 -10 -9 -8 -8 -8 -8 -7 -6 -6 -6 -5 -5 -4 -4 -3 ------- Run | Yrd Mat Min Exi Min Mat Gar Mat Gar Fac Fac Gar Fac Fac Gar Fac Ext Res Combat Hostiles Destroyed 165 | . 5 2 . . . 19 10 . 12 . 29 5 3 21 7 6 46 Guns 68 | . 5 2 . . . 14 1 . 3 . 14 3 1 6 1 1 17 Cannons 85 | . . . . . . 5 8 . 8 . 12 2 2 14 6 . 28 AOE 10 | . . . . . . . . . 1 . 3 . . . . 5 1 Classes Destroyed 17 | . 2 1 . . . 3 2 . 4 . 3 1 . . . . 1 Worker 13 | . . . . . . . 1 . . . . 1 1 . . . 10 Builder 11 | . . . . . . . 1 . . . . . 1 . 1 1 7 Tunneler 2 | . . . . . . . . . 1 . . . . . . 1 . Hauler 6 | . . . . . . . . . 1 . . 2 . . . . 3 Recycler 17 | . . 1 . . . . 3 . 2 . . . . . . . 11 Operator 2 | . . . . . . . . . 1 . . 1 . . . . . Watcher 2 | . . . . . . . . . . . . 1 . . . . 1 Swarmer 36 | . 3 . . . . 5 . . 2 . 14 . . 4 . 4 4 Grunt 59 | . 2 2 . . . 8 8 . 3 . 7 2 2 3 2 . 20 Brawler 1 | . . . . . . . . . . . 1 . . . . . . Duelist 2 | . . . . . . . . . . . 1 . . . 1 . . Protector 1 | . . . . . . . . . . . . . . . . . 1 Sentry 21 | . . . . . . 2 2 . 3 . 5 1 1 7 . . . Specialist 3 | . . . . . . 1 . . . . . . . 2 . . . Hunter 7 | . . . . . . . . . 2 . . . . 1 . . 4 Programmer 31 | . . . . . . 3 . . 2 . . 1 . 4 4 . 17 Behemoth 4 | . . . . . . . . . . . 1 1 . . . 2 . Best Kill Streak 13 | . 5 3 . . . 4 4 . 3 . 13 3 2 5 3 4 9 Combat Bots Only 13 | . 5 2 . . . 4 3 . 3 . 13 1 2 5 2 4 6 Max Kills in Single Turn 5 | . 1 1 . . . 2 1 . 3 . 5 2 1 1 1 2 3 Gunslinging . | . . . . . . . . . . . . . . . . . . Exploded 3 | . . . . . . . . . 1 . 3 . . . . 2 1 Melee . | . . . . . . . . . . . . . . . . . . Uniques/NPCs Destroyed . | . . . . . . . . . . . . . . . . . . Combat | -11 -10 -10 -10 -9 -8 -8 -8 -8 -7 -6 -6 -6 -5 -5 -4 -4 -3 -------- Run | Yrd Mat Min Exi Min Mat Gar Mat Gar Fac Fac Gar Fac Fac Gar Fac Ext Res Hostile Shots Fired 1471 | . 19 13 . 1 . 126 60 . 48 3 221 71 19 175 65 68 582 Missed 433 | . 4 4 . 1 . 36 23 . 23 2 72 27 8 37 19 25 152 Damage Taken 19936 | . 160 127 . . . 1390 576 117 335 20 1938 980 224 2670 1293 1142 8964 Core 2974 | . 19 . . . . 270 113 47 34 20 165 98 41 290 332 241 1304 Absorbed by Shields 27 | . . . . . . 7 . . . . . . . 20 . . . Regen/Repaired (Parts) 89 | . . . . . . . . . . . . . . . 89 . . Core Remaining (%) 70 | 100 . . . 92 . . . 21 95 . . 66 . 66 . 50 . Volleys Fired 653 | . 11 10 . . . 80 51 33 37 3 92 41 16 72 38 14 155 Largest 4 | . 2 2 . . . 3 3 1 3 1 4 4 4 4 4 2 4 Hottest 351 | . 40 40 . . . 163 156 68 164 5 218 219 232 298 260 79 351 Shots Fired 1714 | . 22 20 . . . 192 115 34 88 3 231 117 52 219 96 20 505 Gun 758 | . 22 20 . . . 148 10 . 20 . 142 47 12 92 15 12 218 Cannon 883 | . . . . . . 44 97 34 62 . 80 52 36 127 74 . 277 Launcher 24 | . . . . . . . . . . . 9 6 . . . 8 1 Special 49 | . . . . . . . 8 . 6 3 . 12 4 . 7 . 9 Kinetic 1080 | . 22 20 . . . 121 84 1 57 . 159 74 36 125 74 12 295 Thermal 516 | . . . . . . 71 23 33 17 . 60 4 12 94 13 . 189 Explosive 9 | . . . . . . . . . . . . . . . . 8 1 Electromagnetic 60 | . . . . . . . . . 8 . 12 27 . . 2 . 11 Robot Hit Streak 28 | . 4 6 . . . 11 7 . 9 8 28 17 7 11 10 11 12 Robot Miss Streak 10 | . 1 1 . . . 7 7 . 2 . 5 4 10 10 7 2 8 Penetration Max 2 | . . . . . . . . . . . 1 . . 1 1 1 2 Secondary Targets 4 | . . 1 . . . 1 . . . . 1 . . . . . 1 Max Gunslinging Chain 1 | . . 1 . . . 1 . . . . 1 . . . . . 1 Shots Hit Robots 950 | . 12 13 . . . 96 56 . 57 3 131 78 28 114 52 13 297 Core Hits 516 | . 8 7 . 1 . 44 21 . 27 . 77 44 25 66 26 25 145 Critical Kills 12 | . . . . . . . 1 . . . 3 . . 1 . . 7 Critical Parts Destroyed 14 | . . . . . . . . . . . 5 . . . . . 9 Critical Strikes 73 | . . . . . . 5 3 . 3 . 9 3 2 10 . . 38 Burn 13 | . . . . . . 4 . . . . . 1 . 4 . . 4 Meltdown 3 | . . . . . . . 1 . . . . . . 1 . . 1 Destroy 24 | . . . . . . . . . . . 9 . . . . . 15 Blast 32 | . . . . . . 1 2 . 3 . . 2 2 5 . . 17 Corrupt 1 | . . . . . . . . . . . . . . . . . 1 Melee Attacks . | . . . . . . . . . . . . . . . . . . Impact . | . . . . . . . . . . . . . . . . . . Slashing . | . . . . . . . . . . . . . . . . . . Piercing . | . . . . . . . . . . . . . . . . . . Sneak Attacks . | . . . . . . . . . . . . . . . . . . Combat Hostiles . | . . . . . . . . . . . . . . . . . . Follow-up Attacks . | . . . . . . . . . . . . . . . . . . Damage Inflicted 28388 | . 128 163 . 3 . 1398 1211 . 1528 . 3080 1749 816 3688 1504 1701 11419 Guns 10370 | . 127 163 . . . 1022 99 . 247 . 1869 566 188 1306 217 287 4279 Cannons 15684 | . . . . . . 376 1112 . 1056 . 966 1067 617 2382 1287 . 6821 Explosions 2262 | . . . . . . . . . 225 . 245 100 . . . 1414 278 Melee . | . . . . . . . . . . . . . . . . . . Ramming 72 | . 1 . . 3 . . . . . . . 16 11 . . . 41 Kinetic 17763 | . 127 163 . . . 857 942 . 920 . 2083 1462 573 2369 1287 287 6693 Thermal 8008 | . . . . . . 541 269 . 486 . 765 38 232 1319 178 . 4180 Explosive 1621 | . . . . . . . . . . . . . . . . 1414 207 Electromagnetic 924 | . . . . . . . . . 122 . 232 233 . . 39 . 298 Impact . | . . . . . . . . . . . . . . . . . . Slashing . | . . . . . . . . . . . . . . . . . . Piercing . | . . . . . . . . . . . . . . . . . . Highest Corruption 21 | . . . . . . 4 6 6 3 . . . . 7 8 . 21 Average Corruption 9 | . . . . . . 3 4 6 2 . . . . 2 8 . 15 Corruption Purged . | . . . . . . . . . . . . . . . . . . Corruption Blocked . | . . . . . . . . . . . . . . . . . . Effects 240 | . . . . . . 10 26 12 18 . . . . 11 9 . 154 Message Errors 62 | . . . . . . 5 5 2 8 . . . . 2 2 . 38 Matter Fused 59 | . . . . . . 3 10 2 3 . . . . 3 4 . 34 Heat Flow Errors 26 | . . . . . . 2 5 2 1 . . . . . 1 . 15 Energy Discharges 29 | . . . . . . . 2 2 2 . . . . 3 2 . 18 Parts Rejected 4 | . . . . . . . 2 . . . . . . . . . 2 Parts Fused 1 | . . . . . . . . . . . . . . . . . 1 Data Loss (minor) 22 | . . . . . . . 2 1 2 . . . . . . . 17 Data Loss (major) 11 | . . . . . . . . 1 1 . . . . 1 . . 8 Misfires 7 | . . . . . . . . 1 . . . . . 1 . . 5 Alerts 4 | . . . . . . . . 1 1 . . . . . . . 2 Misdirections 1 | . . . . . . . . . . . . . . . . . 1 Weapon Failures 14 | . . . . . . . . . . . . . . 1 . . 13 Overload Shots . | . . . . . . . . . . . . . . . . . . Overflow Damage 718 | . . . . . . 37 4 . 43 . 25 17 2 38 16 93 443 Projectiles 569 | . . . . . . 37 4 . 22 . . 17 2 38 16 . 433 Explosions 149 | . . . . . . . . . 21 . 25 . . . . 93 10 Melee . | . . . . . . . . . . . . . . . . . . Knockbacks 124 | . . . . . . 2 12 . 3 . 6 6 3 15 22 . 55 Impact . | . . . . . . . . . . . . . . . . . . Kinetic 112 | . . . . . . 2 12 . 3 . 6 5 3 14 22 . 45 Secondary 12 | . . . . . . . . . . . . 1 . 1 . . 10 Self-Inflicted Damage 97 | . . . . . . . . . . . 28 . . . . . 69 Shots 3 | . . . . . . . . . . . 2 . . . . . 1 Rammed 7 | . 1 . . . . . . . . . . . . . . . 6 Targets Rammed 12 | . 1 . . 1 . . . . . . . 1 1 . . . 8 Kicked 5 | . . . . 1 . . . . . . . 1 1 . . . 2 Crushed . | . . . . . . . . . . . . . . . . . . Highest Temperature 356 | . 9 24 . . . 356 238 257 67 . 211 57 223 316 227 . 319 Average Temperature 89 | . 7 15 . . . 106 57 135 14 . 54 16 75 110 108 . 111 Received Heat Transfer 3292 | . 51 72 . . . 363 378 . 72 9 423 193 72 615 81 72 891 Effects 2 | . . . . . . 1 . . . . . . . . . . 1 Energy Bleed 1 | . . . . . . . . . . . . . . . . . 1 Short Circuit 1 | . . . . . . 1 . . . . . . . . . . . Siege Activations . | . . . . . . . . . . . . . . . . . . Robots Corrupted . | . . . . . . . . . . . . . . . . . . Combat Hostiles . | . . . . . . . . . . . . . . . . . . Parts Fried 1 | . . . . . . . . . . . . . . . . . 1 Impact Corruptions 1 | . . . . . . . . . . . . . . . . . 1 Robots Melted 3 | . . . . . . . 1 . . . . . . 1 . . 1 Combat Hostiles 2 | . . . . . . . 1 . . . . . . 1 . . . Parts Melted 23 | . . . . . . 2 1 . . . . 3 . 5 . . 12 Heat Transferred 11914 | . . . . . . 1498 481 . 594 . 988 148 350 1957 240 . 5658 Parts Sabotaged 1 | . . . . . . . . . . . . . . . . . 1 Parts Stolen . | . . . . . . . . . . . . . . . . . . Parts Stripped . | . . . . . . . . . . . . . . . . . . Power Chain Reactions 2 | . . . . . . . . . . . 2 . . . . . . Alert | -11 -10 -10 -10 -9 -8 -8 -8 -8 -7 -6 -6 -6 -5 -5 -4 -4 -3 ------- Run | Yrd Mat Min Exi Min Mat Gar Mat Gar Fac Fac Gar Fac Fac Gar Fac Ext Res Peak Influence 1088 | . 135 107 . 22 . 1088 545 78 170 71 843 444 348 791 435 144 606 Initial 530 | . . 52 . . . 2 530 13 40 71 35 442 73 51 415 61 75 Average 243 | . 39 69 . 7 . 360 170 63 74 56 442 237 108 456 179 60 223 Maximum Alert Level 3 | . . . . . . 3 2 . . . 3 2 1 3 2 . 2 Low Security (%) 58 | 100 100 100 . 100 100 48 62 100 100 100 24 53 82 7 72 100 58 Level 1 17 | . . . . . . 9 28 . . . 20 25 17 45 . . 19 Level 2 19 | . . . . . . 20 8 . . . 38 20 . 35 27 . 22 Level 3 5 | . . . . . . 21 . . . . 16 . . 12 . . . Level 4 . | . . . . . . . . . . . . . . . . . . Level 5 . | . . . . . . . . . . . . . . . . . . High Security . | . . . . . . . . . . . . . . . . . . Max Security . | . . . . . . . . . . . . . . . . . . Squads Dispatched 41 | . . . . . 1 . 3 . 9 . . 5 3 . 4 1 15 Investigation 3 | . . . . . 1 . . . 1 . . . . . . . 1 Extermination 13 | . . . . . . . . . 2 . . 2 . . 2 . 7 Reinforcement 17 | . . . . . . . 3 . 4 . . 3 1 . 1 1 4 Assault 4 | . . . . . . . . . . . . . . . 1 . 3 Garrison 4 | . . . . . . . . . 2 . . . 2 . . . . Intercept . | . . . . . . . . . . . . . . . . . . Searches Triggered . | . . . . . . . . . . . . . . . . . . Construction Impeded 5 | . . . . . . . . . . . . 1 1 . . 1 2 Haulers Reinforced 1 | . . . . . . . . . 1 . . . . . . . . Active Scanning Responses . | . . . . . . . . . . . . . . . . . . Cargo Convoy Interrupts 1 | . . . . . . . . . . . . . . . . . 1 Stealth | -11 -10 -10 -10 -9 -8 -8 -8 -8 -7 -6 -6 -6 -5 -5 -4 -4 -3 --------- Run | Yrd Mat Min Exi Min Mat Gar Mat Gar Fac Fac Gar Fac Fac Gar Fac Ext Res Distress Signals 14 | . . . . . . . 1 . . . . 3 . . 1 1 8 Communications Jammed . | . . . . . . . . . . . . . . . . . . Distress Signals . | . . . . . . . . . . . . . . . . . . Times Spotted 336 | . 7 2 . 3 . 34 21 . 24 2 34 28 18 27 21 10 105 Peak Tracking Total 15 | . 3 2 . 3 . 6 3 . 6 2 12 6 5 9 5 5 15 Tactical Retreats 16 | . . . . . . 3 . . . . 2 . 1 6 1 . 3 Traps | -11 -10 -10 -10 -9 -8 -8 -8 -8 -7 -6 -6 -6 -5 -5 -4 -4 -3 ------- Run | Yrd Mat Min Exi Min Mat Gar Mat Gar Fac Fac Gar Fac Fac Gar Fac Ext Res Traps Triggered 24 | . . . . . . 11 1 3 . . 2 . . 3 2 . 2 Indirectly . | . . . . . . . . . . . . . . . . . . Trap Hack Attempts . | . . . . . . . . . . . . . . . . . . Triggered . | . . . . . . . . . . . . . . . . . . Disarmed . | . . . . . . . . . . . . . . . . . . Reprogrammed 6 | . . . . . . . . . . . . . 6 . . . . Reused 7 | . . . . . . 1 . . . . . . 6 . . . . Traps Extracted . | . . . . . . . . . . . . . . . . . . Installed 4 | . . . . . . 4 . . . . . . . . . . . Triggered 8 | . . . . . . 1 . . . . . . 5 . . . 2 Most Traps Carried 4 | . . . . . . 4 . 1 1 . . . . . . . . Machines | -11 -10 -10 -10 -9 -8 -8 -8 -8 -7 -6 -6 -6 -5 -5 -4 -4 -3 ---------- Run | Yrd Mat Min Exi Min Mat Gar Mat Gar Fac Fac Gar Fac Fac Gar Fac Ext Res Machines Disabled 33 | . . . . . . 3 3 4 5 . 5 3 . 2 2 3 3 Max in Single Turn 2 | . . . . . . 1 1 1 2 . 1 1 . 1 1 2 1 Garrison Access 2 | . . . . . . . . . . . . 1 . . . . 1 Garrison Relay 9 | . . . . . . 3 . . . . 4 . . 2 . . . Machines Repaired . | . . . . . . . . . . . . . . . . . . Machines Dismantled . | . . . . . . . . . . . . . . . . . . Machines Sabotaged . | . . . . . . . . . . . . . . . . . . Overloaded Fab Kills . | . . . . . . . . . . . . . . . . . . Hacking | -11 -10 -10 -10 -9 -8 -8 -8 -8 -7 -6 -6 -6 -5 -5 -4 -4 -3 --------- Run | Yrd Mat Min Exi Min Mat Gar Mat Gar Fac Fac Gar Fac Fac Gar Fac Ext Res Machines Accessed 35 | . . . . . 2 3 3 . 7 1 1 3 2 2 4 1 6 Terminals 27 | . . . . . 1 3 2 . 6 . 1 2 1 2 3 1 5 Fabricators . | . . . . . . . . . . . . . . . . . . Repair Stations 1 | . . . . . . . . . . . . . . . 1 . . Recycling Units . | . . . . . . . . . . . . . . . . . . Scanalyzers . | . . . . . . . . . . . . . . . . . . Garrison Access 7 | . . . . . 1 . 1 . 1 1 . 1 1 . . . 1 Total Hacks 74 | . . . . . 4 7 11 . 11 1 3 5 7 3 9 2 11 Successful 35 | . . . . . 2 2 6 . 5 1 . 4 4 2 4 1 4 Failed 39 | . . . . . 2 5 5 . 6 . 3 1 3 1 5 1 7 Catastrophic 11 | . . . . . 1 1 . . 1 . 1 1 . . 2 . 4 Database Lockouts . | . . . . . . . . . . . . . . . . . . Manual 25 | . . . 1 . 1 1 8 . 1 . . 2 4 . 2 . 5 Terminals 63 | . . . . . 2 7 10 . 10 . 3 4 6 3 6 2 10 Fabricators . | . . . . . . . . . . . . . . . . . . Repair Stations 3 | . . . . . . . . . . . . . . . 3 . . Recycling Units . | . . . . . . . . . . . . . . . . . . Scanalyzers . | . . . . . . . . . . . . . . . . . . Garrison Access 8 | . . . . . 2 . 1 . 1 1 . 1 1 . . . 1 Terminal Hacks 26 | . . . . . 1 2 5 . 4 . . 3 3 2 2 1 3 Record 3 | . . . . . . . . . 1 . . . 1 . . . 1 Prototype ID Bank 5 | . . . . . 1 . 4 . . . . . . . . . . Open Door 2 | . . . . . . . . . . . . . . . 1 1 . Level Access Points 1 | . . . . . . . . . . . . 1 . . . . . Emergency Access Points 3 | . . . . . . 1 . . . . . 1 . 1 . . . Unreport Threat 1 | . . . . . . . 1 . . . . . . . . . . Locate Traps 4 | . . . . . . . . . 2 . . . 1 . . . 1 Reprogram Traps 1 | . . . . . . . . . . . . . 1 . . . . Hauler Manifests 1 | . . . . . . . . . 1 . . . . . . . . Registered Components 1 | . . . . . . . . . . . . . . . 1 . . Registered Prototypes 1 | . . . . . . . . . . . . 1 . . . . . Zone Layout 1 | . . . . . . . . . . . . . . . . . 1 Patrol Navigation 1 | . . . . . . . . . . . . . . 1 . . . Security Stations 1 | . . . . . . 1 . . . . . . . . . . . Fabricator Hacks . | . . . . . . . . . . . . . . . . . . Repair Station Hacks 2 | . . . . . . . . . . . . . . . 2 . . Scan Component 1 | . . . . . . . . . . . . . . . 1 . . Repair 1 | . . . . . . . . . . . . . . . 1 . . Recycling Unit Hacks . | . . . . . . . . . . . . . . . . . . Scanalyzer . | . . . . . . . . . . . . . . . . . . Garrison Access Hacks 6 | . . . . . 1 . 1 . . 1 . 1 1 . . . 1 Unlock Access 4 | . . . . . 1 . 1 . . 1 . . 1 . . . . Seal Access 2 | . . . . . . . . . . . . 1 . . . . 1 Unauthorized Hacks 1 | . . . . . . . . . 1 . . . . . . . . Terminals . | . . . . . . . . . . . . . . . . . . Fabricators . | . . . . . . . . . . . . . . . . . . Repair Stations . | . . . . . . . . . . . . . . . . . . Recycling Units . | . . . . . . . . . . . . . . . . . . Scanalyzers . | . . . . . . . . . . . . . . . . . . Garrison Access 1 | . . . . . . . . . 1 . . . . . . . . Reprogram 1 | . . . . . . . . . 1 . . . . . . . . Data Cores Recovered 2 | . . . . . . . . . . . . 1 1 . . . . Used . | . . . . . . . . . . . . . . . . . . Hacking Detections 24 | . . . . . 2 3 2 . 5 1 1 2 1 1 3 1 2 Full Trace Events 3 | . . . . . 1 1 . . . . 1 . . . . . . Feedback Events . | . . . . . . . . . . . . . . . . . . Feedback Blocked . | . . . . . . . . . . . . . . . . . . Robot Schematics Acquired . | . . . . . . . . . . . . . . . . . . Robots Built . | . . . . . . . . . . . . . . . . . . Authchips . | . . . . . . . . . . . . . . . . . . Time . | . . . . . . . . . . . . . . . . . . Total Robot Build Rating . | . . . . . . . . . . . . . . . . . . Part Schematics Acquired . | . . . . . . . . . . . . . . . . . . Parts Built . | . . . . . . . . . . . . . . . . . . Authchips . | . . . . . . . . . . . . . . . . . . Time . | . . . . . . . . . . . . . . . . . . Total Part Build Rating . | . . . . . . . . . . . . . . . . . . Parts Repaired 1 | . . . . . . . . . . . . . . . 1 . . Time 19 | . . . . . . . . . . . . . . . 19 . . Parts Recycled . | . . . . . . . . . . . . . . . . . . Recycled Matter . | . . . . . . . . . . . . . . . . . . Retrieved Matter . | . . . . . . . . . . . . . . . . . . Retrieved Components . | . . . . . . . . . . . . . . . . . . Parts Scanalyzed . | . . . . . . . . . . . . . . . . . . Part Schematics Acquired . | . . . . . . . . . . . . . . . . . . Parts Damaged . | . . . . . . . . . . . . . . . . . . Bothacking | -11 -10 -10 -10 -9 -8 -8 -8 -8 -7 -6 -6 -6 -5 -5 -4 -4 -3 ------------ Run | Yrd Mat Min Exi Min Mat Gar Mat Gar Fac Fac Gar Fac Fac Gar Fac Ext Res Used RIF Installer 5 | . . . . . . 1 . 1 . . 1 . . 2 . . . Threat Obfuscator 1 | . . . . . . . . 1 . . . . . . . . . Watcher Feeds 1 | . . . . . . . . . . . . . . 1 . . . Structural Interface 1 | . . . . . . . . . . . 1 . . . . . . Program Shield 1 | . . . . . . . . . . . . . . 1 . . . Robots Hacked 30 | . . . . . . . 2 . 5 2 . 9 2 . 4 . 6 Non-combat 6 | . . . . . . . 2 . 1 . . . 1 . 1 . 1 Combat 24 | . . . . . . . . . 4 2 . 9 1 . 3 . 5 Robot Hacks Applied 39 | . . . . . . . 7 . 5 2 . 9 3 . 5 . 8 no_distress 1 | . . . . . . . . . 1 . . . . . . . . purge_threat 13 | . . . . . . . 6 . . . . . 2 . 2 . 3 overload_power 1 | . . . . . . . 1 . . . . . . . . . . disable_weapons 1 | . . . . . . . . . . . . 1 . . . . . overwrite_iff 4 | . . . . . . . . . 1 . . 1 . . 2 . . formatsys_high 19 | . . . . . . . . . 3 2 . 7 1 . 1 . 5 Relay Couplers Released 38 | . . . . . . 13 . . . . 15 . . 10 . . . Machine Destruction 38 | . . . . . . 13 . . . . 15 . . 10 . . . Attached 19 | . . . . . . . 2 . 2 1 . 5 2 . 2 . 5 Fabnet Peak Effective % . | . . . . . . . . . . . . . . . . . . Robots Rewired 5 | . . . . . . 4 . . . . . . . . 1 . . Allies Hacked . | . . . . . . . . . . . . . . . . . . Hacks Repelled . | . . . . . . . . . . . . . . . . . . Allies | -11 -10 -10 -10 -9 -8 -8 -8 -8 -7 -6 -6 -6 -5 -5 -4 -4 -3 -------- Run | Yrd Mat Min Exi Min Mat Gar Mat Gar Fac Fac Gar Fac Fac Gar Fac Ext Res Total Allies 37 | . . . . 3 . 6 . . 5 2 . 8 4 . 4 . 5 Largest Group 6 | . . . . 3 2 4 . . 3 2 2 3 6 1 2 2 2 Highest-Rated Group 189 | . . . . 40 32 96 . . 69 58 58 105 189 29 97 97 137 Highest-Rated Ally 137 | . . . . 16 16 31 . . 32 29 29 90 32 29 49 49 137 Total Orders 4 | . . . . . . . . . 2 . 2 . . . . . . STAY 2 | . . . . . . . . . 1 . 1 . . . . . . FOLLOW 2 | . . . . . . . . . 1 . 1 . . . . . . Ally Attacks 239 | . . . . 1 . 38 . . 30 1 12 57 50 6 9 13 22 Total Damage 5844 | . . . . 18 . 774 . . 538 33 136 1445 846 95 345 435 1179 Kills 53 | . . . . 1 . 10 . . 8 . . 9 13 1 1 2 8 Allies Corrupted 2 | . . . . . . . . . 1 . . . . . . . 1 Allies Melted 1 | . . . . . . . . . . . . 1 . . . . . Intel | -11 -10 -10 -10 -9 -8 -8 -8 -8 -7 -6 -6 -6 -5 -5 -4 -4 -3 ------- Run | Yrd Mat Min Exi Min Mat Gar Mat Gar Fac Fac Gar Fac Fac Gar Fac Ext Res Robot Analysis Total . | . . . . . . . . . . . . . . . . . . Derelict Logs Recovered 2 | . . . . 2 . . . . . . . . . . . . . Drone Launches . | . . . . . . . . . . . . . . . . . . Drone Recoveries . | . . . . . . . . . . . . . . . . . . Exploration | -11 -10 -10 -10 -9 -8 -8 -8 -8 -7 -6 -6 -6 -5 -5 -4 -4 -3 ------------- Run | Yrd Mat Min Exi Min Mat Gar Mat Gar Fac Fac Gar Fac Fac Gar Fac Ext Res Turns Passed 18606 | 1 162 225 485 688 130 2148 1013 375 1720 225 1776 1915 684 2051 1134 254 3620 Spaces Moved 10171 | 1 74 121 262 357 68 1341 713 279 1240 206 890 1077 412 843 561 122 1604 Core 39 | . . . . . . . . . . . . . . . . . 39 Treads 1365 | . 68 121 133 . . . . . . . 631 206 . . . 36 170 Legs 7729 | 1 6 . 129 357 68 1341 713 279 1240 206 259 871 412 843 561 86 357 Wheels 547 | . . . . . . . . . . . . . . . . . 547 Hover 491 | . . . . . . . . . . . . . . . . . 491 Flight . | . . . . . . . . . . . . . . . . . . Fastest Speed 50 | 120 120 160 160 190 190 90 90 103 103 103 96 120 120 112 112 112 50 Average Speed 134 | 120 156 160 174 190 190 126 101 103 103 103 140 135 120 181 140 152 134 Slowest Speed 450 | 120 160 160 190 190 190 190 175 103 103 103 156 225 120 450 186 260 305 Overloaded Moves . | . . . . . . . . . . . . . . . . . . Propulsion Burnouts . | . . . . . . . . . . . . . . . . . . Robots Hopped . | . . . . . . . . . . . . . . . . . . Cave-ins Triggered 2 | . . . . . . . . . . . . . . 1 1 . . Exploration Rate (%) 36 | 2 27 30 62 77 9 88 43 36 35 11 72 27 15 54 12 26 31 Regions Visited 17 Branch Regions 4 Pre-discovered Areas 2 | . . 1 . 1 . . . . . . . . . . . . . Known Exits Taken 5 | . . . . . 1 . 1 . . 1 . 1 1 . . . . Unknown Exits Taken 8 | 1 1 1 1 1 . . . . 1 . . . . . 1 1 . Scrap Searched 1 | . . . . 1 . . . . . . . . . . . . . Spaces Dug 21 | . . . . . . . . . . . . . . 6 15 . . Terrain Destroyed 288 | . . . . . . . 16 . 24 . 12 4 9 48 38 44 93 Melee . | . . . . . . . . . . . . . . . . . . Projectile 202 | . . . . . . . 16 . 5 . . 4 9 48 38 . 82 AOE 86 | . . . . . . . . . 19 . 12 . . . . 44 11 Terrain Rammed . | . . . . . . . . . . . . . . . . . . Walls Destroyed . | . . . . . . . . . . . . . . . . . . Machines Disabled . | . . . . . . . . . . . . . . . . . . Actions | -11 -10 -10 -10 -9 -8 -8 -8 -8 -7 -6 -6 -6 -5 -5 -4 -4 -3 --------- Run | Yrd Mat Min Exi Min Mat Gar Mat Gar Fac Fac Gar Fac Fac Gar Fac Ext Res Total 13998 | 2 99 135 294 366 68 1657 927 334 1625 219 1251 1464 572 1229 840 170 2746 Wait 2343 | . 3 4 15 7 . 108 107 20 283 2 217 263 119 258 185 30 722 Move 10155 | . 73 120 261 356 68 1340 713 278 1239 205 889 1076 411 841 560 121 1604 Hop . | . . . . . . . . . . . . . . . . . . Pick Up 294 | . 7 1 4 . . 38 21 1 23 2 20 26 9 23 18 1 100 Fast Attach . | . . . . . . . . . . . . . . . . . . Attach 236 | . . . 6 2 . 16 15 . 17 3 14 26 6 15 17 3 96 Detach 15 | . . . 4 . . . 2 . 1 . . 1 1 . . . 6 Swap 38 | . 3 . . . . 1 2 . 5 . 4 10 2 . 5 1 5 Drop 192 | 2 1 . 4 . . 24 16 1 20 4 15 20 7 19 11 . 48 Fire 653 | . 11 10 . . . 80 51 33 37 3 92 41 16 72 38 14 155 Melee . | . . . . . . . . . . . . . . . . . . Ram 7 | . . . . . . . . . . . . . . . . . 7 Kick 5 | . . . . 1 . . . . . . . 1 1 . . . 2 Crush 1 | . 1 . . . . . . . . . . . . . . . . Escape Stasis 34 | . . . . . . 32 . 1 . . . . . 1 . . . Rewire 21 | . . . . . . 14 . . . . . . . . 6 . 1 Trap 4 | . . . . . . 4 . . . . . . . . . . . Miscellaneous . | . . . . . . . . . . . . . . . . . . Route ------- -11/Scrapyard -10/Materials -10/Mines (discovered 2 exits: [*Mat] / *Exi) -10/Exiles -9/Mines -8/Materials -8/Garrison (discovered 3 exits: *Mat x3) -8/Materials -8/Garrison -7/Factory (discovered 2 exits: *Fac x2) -6/Factory (discovered 2 exits: [*Low] / Gar) -6/Garrison (discovered 3 exits: *Fac x3) -6/Factory (discovered 4 exits: *Fac x4) -5/Factory (discovered 2 exits: *Fac / Gar) -5/Garrison -4/Factory -4/Extension -3/Research (discovered 1 exit: *Tes) History --------- Turn | Location | Event 2 | -11/Scrapyard | Discovered new exit (range 0) 2 | -11/Scrapyard | Entered Materials 82 | -10/Materials | Discovered new exit (range 14) 164 | -10/Materials | Entered Mines 177 | -10/Mines | Learned location of Storage (-9) 225 | -10/Mines | Discovered new exit (range 11) 302 | -10/Mines | Build established: Mutant 381 | -10/Mines | Deemed a non-threat by the Exiles lab entrance 383 | -10/Mines | Discovered new exit (range 5) 389 | -10/Mines | Entered Exiles 429 | -10/Exiles | Met 8R-AWN 455 | -10/Exiles | Met EX-HEX 498 | -10/Exiles | Met EX-BIN 540 | -10/Exiles | Aligned with FarCom system 541 | -10/Exiles | Given EX-Vault access code 581 | -10/Exiles | Opened EX-Vault 591 | -10/Exiles | Found Prototype Device 592 | -10/Exiles | Identified PSU Rigger 597 | -10/Exiles | Found Prototype Energy Cannon 599 | -10/Exiles | Identified Firepult 607 | -10/Exiles | Found Prototype Leg 609 | -10/Exiles | Found Prototype Leg 611 | -10/Exiles | Identified Potential Leg (x2) 662 | -10/Exiles | Warned to stay clear of 0b10 Research branches 669 | -10/Exiles | Exiles lab attacked by MAIN.C 854 | -10/Exiles | Discovered new exit (range 14) 874 | -10/Exiles | Left Exiles lab with Potential Leg 874 | -10/Exiles | Entered Mines 888 | -9/Mines | Assisted by bots powering up and referring to "LRC-V3" 1007 | -9/Mines | Assembled infested the area 1012 | -9/Mines | Assisted by a Guerilla fighting off Assembled 1494 | -9/Mines | Learned Materials garrison access intel 1538 | -9/Mines | Discovered new exit (range 10) 1562 | -9/Mines | Entered Materials 1562 | -8/Materials | Accompanied by 2 allies 1562 | -8/Materials | Evolved 4 slots: Propulsion x1, Utility x2, Weapon x1 1563 | -8/Materials | Loaded intel: 1 garrison access location 1692 | -8/Materials | Identified exit to Garrison 1692 | -8/Materials | Entered Garrison 1692 | -8/Garrison | Accompanied by 2 allies 1738 | -8/Garrison | Triggered checkpoint 1779 | -8/Garrison | Learned Materials security intel 1904 | -8/Garrison | Triggered checkpoint 1998 | -8/Garrison | Triggered checkpoint 2003 | -8/Garrison | Build established: Skirmisher 2078 | -8/Garrison | Triggered checkpoint 2091 | -8/Garrison | Discovered new exit (range 14) 2302 | -8/Garrison | Triggered checkpoint 2492 | -8/Garrison | Triggered checkpoint 2759 | -8/Garrison | Rescued a captive Derelict 2763 | -8/Garrison | Rescued a captive Derelict 2887 | -8/Garrison | Discovered new exit (range 11) 3102 | -8/Garrison | Garrison Relay disabled 3193 | -8/Garrison | Garrison Relay disabled 3316 | -8/Garrison | Lost 3 allies 3599 | -8/Garrison | Discovered new exit (range 9) 3601 | -8/Garrison | Spotted B-75 Beast 3647 | -8/Garrison | Installed Relay Interface Framework 3699 | -8/Garrison | Garrison Relay disabled 3840 | -8/Garrison | Entered Materials 3921 | -8/Materials | Core integrity fell below 50% 3945 | -8/Materials | Build established: Bothacker-Skirmisher 4853 | -8/Materials | Identified exit to Garrison 4853 | -8/Materials | Entered Garrison 4883 | -8/Garrison | Triggered checkpoint 5092 | -8/Garrison | Discovered new exit (range 8) 5191 | -8/Garrison | Expanded RIF knowledge: Threat Obfuscation 5228 | -8/Garrison | Entered Factory 5228 | -7/Factory | Evolved 2 slots: Utility x2 5692 | -7/Factory | Discovered new exit (range 10) 5728 | -7/Factory | Build established: Bothacker-Gunner 6553 | -7/Factory | Build established: Bothacker-Skirmisher 6691 | -7/Factory | Discovered new exit (range 13) 6948 | -7/Factory | Entered another Factory area 6948 | -6/Factory | Accompanied by 1 ally 6948 | -6/Factory | Evolved 2 slots: Propulsion x1, Weapon x1 7104 | -6/Factory | Discovered new exit (range 9) 7169 | -6/Factory | Identified exit to Garrison 7173 | -6/Factory | Entered Garrison 7173 | -6/Garrison | Accompanied by 2 allies 7218 | -6/Garrison | Garrison Relay disabled 7237 | -6/Garrison | Triggered checkpoint 7586 | -6/Garrison | Spotted B-75 Beast 7592 | -6/Garrison | Triggered checkpoint 7676 | -6/Garrison | Destroyed 13 combat bots 7705 | -6/Garrison | Destroyed B-75 Beast 7713 | -6/Garrison | Lost 3 parts (1n2u) 7906 | -6/Garrison | Discovered new exit (range 10) 7957 | -6/Garrison | Triggered checkpoint 7996 | -6/Garrison | Garrison Relay disabled 8115 | -6/Garrison | Triggered checkpoint 8145 | -6/Garrison | Discovered new exit (range 9) 8177 | -6/Garrison | Triggered checkpoint 8192 | -6/Garrison | Garrison Relay disabled 8357 | -6/Garrison | Triggered checkpoint 8569 | -6/Garrison | Triggered checkpoint 8606 | -6/Garrison | Expanded RIF knowledge: Structural Interface 8685 | -6/Garrison | Garrison Relay disabled 8767 | -6/Garrison | Triggered checkpoint 8933 | -6/Garrison | Discovered new exit (range 11) 8949 | -6/Garrison | Entered Factory 9099 | -6/Factory | Spotted B-75 Beast 9150 | -6/Factory | Destroyed B-75 Beast 9179 | -6/Factory | Lost 5 parts (3n1u1w) 10393 | -6/Factory | Identified exit to Factory 10864 | -6/Factory | Entered another Factory area 10864 | -5/Factory | Accompanied by 3 allies 10864 | -5/Factory | Evolved 2 slots: Utility x2 11090 | -5/Factory | Discovered new exit (range 13) 11335 | -5/Factory | Allied Derelicts emerged from ambush trap array 11420 | -5/Factory | Garrison activated, responded to threat 11459 | -5/Factory | Lost 4 allies 11533 | -5/Factory | Identified exit to Garrison 11548 | -5/Factory | Entered Garrison 11548 | -5/Garrison | Accompanied by 1 ally 11651 | -5/Garrison | Expanded RIF knowledge: Watcher Feeds 11924 | -5/Garrison | Triggered checkpoint 12009 | -5/Garrison | Spotted B-75 Beast 12067 | -5/Garrison | Garrison Relay disabled 12570 | -5/Garrison | Spotted B-75 Beast 12693 | -5/Garrison | Discovered new exit (range 14) 12769 | -5/Garrison | Spotted B-75 Beast 13172 | -5/Garrison | Lost 6 parts (1p3n1u1w) 13205 | -5/Garrison | Expanded RIF knowledge: Program Shield 13266 | -5/Garrison | Triggered checkpoint 13293 | -5/Garrison | Garrison Relay disabled 13469 | -5/Garrison | Build established: Botlord-Skirmisher 13513 | -5/Garrison | Crushed by falling debris 13599 | -5/Garrison | Entered Factory 13599 | -4/Factory | Evolved 2 slots: Power x1, Utility x1 13839 | -4/Factory | Repaired Carbon-fiber Leg 13849 | -4/Factory | First assault squad dispatched 14029 | -4/Factory | Crushed by falling debris 14285 | -4/Factory | Found Prototype Processor 14286 | -4/Factory | Identified Exp. Terrain Scan Processor 14360 | -4/Factory | Spotted B-86 Titan 14715 | -4/Factory | Discovered new exit (range 6) 14733 | -4/Factory | Entered Extension 14733 | -4/Extension | Accompanied by 2 allies 14808 | -4/Extension | Build established: Bothacker-Skirmisher 14851 | -4/Extension | Spotted B-86 Titan 14880 | -4/Extension | Spotted B-86 Titan 14883 | -4/Extension | Destroyed B-86 Titan 14889 | -4/Extension | Destroyed B-86 Titan 14919 | -4/Extension | Lost 8 parts (1p3n4w) 14962 | -4/Extension | Discovered new exit (range 5) 14987 | -4/Extension | Entered Research 14987 | -3/Research | Evolved 2 slots: Utility x2 15163 | -3/Research | Build established: Bothacker-Mutant 15380 | -3/Research | Lost 9 parts (1p3u5w) 15615 | -3/Research | Spotted B-86 Titan 15693 | -3/Research | Build established: Bothacker-Skirmisher 15706 | -3/Research | System corruption reached 10% 15755 | -3/Research | Lost 4 parts (1n1u2w) 16267 | -3/Research | Build established: Scavenger-Gunner 16453 | -3/Research | Cargo convoy interrupted 16576 | -3/Research | Lost 4 parts (2u2w) 17223 | -3/Research | Core integrity fell below 50% 17254 | -3/Research | Lost 5 parts (1p1n1u2w) 17477 | -3/Research | Discovered new exit (range 14) 17518 | -3/Research | Lost 4 parts (1p1u2w) 17627 | -3/Research | Identified exit to Testing 17800 | -3/Research | Found Prototype Device 17802 | -3/Research | Identified Active Sensor Suite 17987 | -3/Research | First assault squad dispatched 18081 | -3/Research | Lost 3 parts (1p2w) 18586 | -3/Research | Core integrity fell below 20% 18607 | -3/Research | Destroyed by G-67 Veteran with Field Laser Last Messages --------------- 18580_ Plasma Rifle destroyed. 18580_ Adv. Heat Sink destroyed. 18582_ Lgt. Antimatter Reactor destroyed. 18582_ Phase Gun destroyed. 18583_ Dropped Med. Storage Unit. 18583_ Adv. Heat Sink destroyed. 18584_ Slammed into G-67 Veteran. 18585_ Destabilizing: Core damaged (-13). 18586_ M-36 Artificer repairs W-44 Eye. 18588_ Acquired Adv. Heavy Treads. 18597_ J E#T,OP9,ED/ 7I RPB/OTOKIL 18599_ Triggered Segregator Trap. 18599_ Arcs of energy rise from the floor. 18599_ Graphene Brace blown off. 18599_ Adv. Signal Interpreter blown off. 18599_ Adv. Target Analyzer blown off. 18604_ ALERT: Suspicious intruders detected, dispatching Cutter reinforcements to area. 18607_ Knocked back. 18607_ W-44 Eye knocked back. Map ----- +----------------------------------------------------+ | ?????????????????????????????????????????????????? | | ?????????????????????????????????????????????????? | | ?????????????????????????????????????????????????? | | ?????????????????????????????????????????????????? | | ?????????????????????????????????????????????????? | | ?????????????????????????????????????????????????? | | ?????????????????????????????????????????????????? | | ?????????????????????????????????????????????????? | | ?????????????????????????????????????????????????? | | ?????????????????????###?##########??????????????? | | ?????????????????? ?+ ! =#??????????????? | | ???????????????? ?# !! #??????????????? | | ???????????????? g # !! #??????????????? | | ???????????????? # !! ???????????????? | | ???????????????? c # / ???????????????? | | ?????????????????? cc # ! ????????????????? | | ??????????????????? + ?##########?????? | | ??????????????###+#?# #? ??# #?????? | | ??????????????# # #? ??# ! #?????? | | ??????????????# # ## ##+#### """ #?????? | | ??????????????# = g """ #?????? | | ??????????????# * ###g """ !#?????? | | ??????????????# #?#gg #?????? | | ????########### #?#gg #?????? | | ????# ## # ######?# #?????? | | ????# ## @ #??????# #????? | | ???# ######## ############/########## | | # # w | | # # | | ????# # | | ##### # %t | | # # ######+#############+######+#### | | # # %# % #??# # | | ######+### # #??# # | | #?# %%!!# """#??#""" # | | #?# * *= = # """#??#""" ! # | | #+##### % !=!%!# """#??#"S [% # | | *%!=! !# #??#""" % / "" "" | | ######## #### ## #??# "" !# ""T"" | | #??????# #### ## #??# # """ ! | | #??????# #??# #########/#???# ########## | | #??????# #??# #???????? ????##########????????? | | #????###+#### ##??????? ??????????????????????? | | #????# # ##??????????????????????????????? | | ###### # %##??????????????????????????????? | | / %= + %######??????????????????????????? | | ####### # % #??????????????????????????? | | #?????# # % #??????????????????????????? | | #?????# # ### #??????????????????????????? | | #?????######## #?? #??????????????????????????? | +----------------------------------------------------+ Best States ------------- Heat Dissipation 103 Coolant Potential 100 Energy Generation 39 Energy Capacity 375 Matter Stores 300 Matter Capacity 300 Sight Range 16 Terrain Scan Density 10 Corruption Containment 12 Corruption Block 8 Armor Coverage 600 Resistance: EM 20 Phase Shifting 10 Evasion (%) 57 Targeting Accuracy 16 Target Analysis 12 Recoil Reduction 4 Kinecelleration 40 Salvage Targeting 2 Offensive Hacking 20 Defensive Hacking 12 Relay Coupler Types 2 Relay Coupler Value 69 Item Schematics ----------------- None Robot Schematics ------------------ None Fabricated ------------ Nothing Alien Tech Used ----------------- None Achievements -------------- None Challenges ------------ None Game ------ Seed GrapheneScrapShearcannon Manual? 0 Play Time 02:37:11 Cumulative 86.6 hours Start 2024.04.18 @ 03:05:52 End 2024.04.18 @ 06:06:32 Sessions 1 Manual Loads 0 Difficulty Rogue Special Mode None Game No. 77 Rogue 77 Adventurer 0 Explorer 0 Win Type - Total 0 Types 0/0/0/0/0/0/0/0/0 Lore% 42 Gallery% 54 Achievement% 33 Wizard Run 0 Options --------- Layout 1 ASCII 0 Keyboard 0 Movement Numpad Keybinds 0 Fullscreen 1 Font 24/Smallcaps Map View 50x35 Zoom Use 0% Tactical HUD 1 Map Filters NONE Filters NONE Steam 1 RUN: 20b7800c-7831-42f6-b7bb-8c5ec64b4607